Workbook

Sheet Project Information
B1: Central Coast Region
B2: Stormwater Control Measure
B3: Sizing Calculator | I3: Version: 7/2/2018
B6: 1. Project Information | O6: Ranges | P6: Row
B7: Project name: | O7: DMA-UL | P7: =ROW(start_DMA)+1 -> 21
B8: Project location: | O8: DMA-LR | P8: =ROW(end_DMA)-1 -> 21
B9: Tier 2/Tier 3: | D9: Tier 3 - Retention | O9: SCM-UL | P9: =ROW(start_SCM)+1 -> 32
B10: Design rainfall depth (in): | O10: SCM-LR | P10: =ROW(end_SCM)-1 -> 32
B11: Total project area (ft2): | E11: =IF(D11=0,"",IF(ABS((D11-(D12+D17))/D11)<0.02,"","Check Total DMA and SCM areas to ensure they match total project area")) ->  | O11: OUT-UL | P11: =ROW(start_Output)+1 -> 40
B12: Total DMA area (ft2): | D12: =SUM(D13:D16) -> 0 | O12: OUT-LR | P12: =ROW(end_Output)-1 -> 40
B13: Total new impervious area (ft2):
B14: Total replaced impervious within a USA (ft2):
B15: Total replaced impervious not in a USA (ft2):
B16: Total pervious/landscape area (ft2):
B17: Total SCM area (ft2):
B19: 2. DMA Characterization
A20: Name | C20: DMA Type | D20: Area (ft2) | E20: Surface Type | F20: New, Replaced? | G20: Connection | J20: CN | K20: SCM CODE (DMA_CN_Weight)
J21: =IF(E21="","",VLOOKUP(E21,'Lookups, Constants'!$A$14:$B$23,2,FALSE)) ->  | K21: =IF(J21="","",IF(J21=98,G21 & "_" & VLOOKUP(C21,'Lookups, Constants'!$A$4:$B$7,2,FALSE)&"_"&VLOOKUP(F21,'Lookups, Constants'!$A$44:$B$46,2,FALSE),G21 & "_" & J21)) -> 
A22: end_DMA
A23: DMA Summary Area Check
B24: Total assigned DMA area (ft2): | D24: =SUM(IF($C$21:C22="Drains to SCM",IF(LEN($G$21:G22)>0,$D$21:D22,0),0))+SUM(IF($C$21:C22="Self-Treating",$D$21:D22,0))+SUM(IF($C$21:C22="Self-Retaining",$D$21:D22,0))+SUM(IF($C$21:C22="Drains to Self-Retaining",IF(LEN($G$21:G22)>0,$D$21:D22,0),0)) -> 0 | E24: =IF(D12=0,IF(D12<>0,"Check 'DMA to SCM connections' and DMA table areas against plan sheet areas",""),IF(ABS(D12-D24)/D12>0.02,"Check 'DMA to SCM connections' DMA table areas against plan sheet areas","")) -> 
B25: New impervious area (ft2): | D25: =SUM(IF($J$21:J22=98,IF($F$21:F22="New",$D$21:D22,0),0))+SUM(IF($J$21:J22=98,IF($C$21:C22="Drains to Self-Retaining",$D$21:D22,0),0)) -> 0 | E25: =IF(D25=0,IF(D13<>0,"Check DMA table areas against plan sheet areas",""),IF(D13=0,"Check DMA table areas against plan sheet areas",IF(ABS(D13-D25)/D13>0.02,"Check DMA table areas against plan sheet areas",""))) -> 
B26: Replaced impervious within a USA (ft2): | D26: =SUM(IF($J$21:J22=98,IF($F$21:F22="Replaced within a USA",$D$21:D22,0),0)) -> 0 | E26: =IF(D26=0,IF(D14<>0,"Check DMA table areas against plan sheet areas",""),IF(D14=0,"Check DMA table areas against plan sheet areas",IF(ABS(D14-D26)/D14>0.02,"Check DMA table areas against plan sheet areas",""))) -> 
B27: Replaced impervious not in a USA (ft2): | D27: =SUM(IF($J$21:J22=98,IF($F$21:F22="Replaced",$D$21:D22,0),0)) -> 0 | E27: =IF(D27=0,IF(D15<>0,"Check DMA table areas against plan sheet areas",""),IF(D15=0,"Check DMA table areas against plan sheet areas",IF(ABS(D15-D27)/D15>0.02,"Check DMA table areas against plan sheet areas",""))) -> 
B28: Total pervious/landscape area (ft2): | D28: =SUM(IF($C$21:C22="Drains to SCM",IF($J$21:J22<98,$D$21:D22,0),0))+SUM(IF($C$21:C22="Self-Treating",$D$21:D22,0))+SUM(IF($C$21:C22="Self-Retaining",$D$21:D22,0)) -> 0 | E28: =IF(D28=0,IF(D16<>0,"Check DMA table areas against plan sheet areas",""),IF(D16=0,"Check DMA table areas against plan sheet areas",IF(ABS(D16-D28)/D16>0.02,"Check DMA table areas against plan sheet areas",""))) -> 
K29: _2SCM_NEW | L29: _2SCM_RUSA | M29: _2SCM_RPL | N29: _68 | O29: _89
B30: 3. SCM Characterization | H30: Flow Control | I30: Reservoir | K30: New Imp Area | L30: Rpl Imp USA | M30: Rpl Imp non-USA | N30: Landscape | O30: Solid unit pavers | P30: SUM
A31: Name | C31: SCM Type | D31: Safety Factor | E31: SCM Soil Type | F31: Infilt. Rate (in/hr) | G31: Area (ft2) | H31: Orifice? | I31: Depth (in)
D32: =IF(C32="","",IF(C32="Bioretention",1,2)) ->  | J32: =IF(A32="","",A32) ->  | K32: =IF(J32="","",SUMIF($K$21:$K$22,$A32 & K$29,$D$21:$D$22)) ->  | L32: =IF(J32="","",SUMIF($K$21:$K$22,$A32 & L$29,$D$21:$D$22)) ->  | M32: =IF(J32="","",SUMIF($K$21:$K$22,$A32 & M$29,$D$21:$D$22)) ->  | N32: =IF(J32="","",SUMIF($K$21:$K$22,$A32 & N$29,$D$21:$D$22)) ->  | O32: =IF(J32="","",SUMIF($K$21:$K$22,$A32 & O$29,$D$21:$D$22)) ->  | P32: =SUM(K32:O32) -> 0
A33: end_SCM | C33: =IF(D17=0,"",IF(ABS(D17-SUM($G$32:G33))/D17>0.02,"Note: SCM areas in 'Project Information' and 'SCM Characterization' blocks differ by more than 2%. Please check.","")) ->  | K33: =IF(J33="","",SUMIF($K$21:$K$22,$A33 & K$29,$D$21:$D$22)) ->  | L33: =IF(J33="","",SUMIF($K$21:$K$22,$A33 & L$29,$D$21:$D$22)) ->  | M33: =IF(J33="","",SUMIF($K$21:$K$22,$A33 & M$29,$D$21:$D$22)) ->  | N33: =IF(J33="","",SUMIF($K$21:$K$22,$A33 & N$29,$D$21:$D$22)) ->  | O33: =IF(J33="","",SUMIF($K$21:$K$22,$A33 & O$29,$D$21:$D$22)) -> 
B34: 4. Run SBUH Model
B38: 5. SCM Minimum Sizing Requirements
A39: SCM Name | C39: Min. Required Storage Vol. (ft3) | D39: Depth Below Underdrain (ft) | E39: Drain Time (hours) | F39: Orifice Diameter (in)
A41: end_Output
B43: 6. Self-Retaining Area Sizing Checks
A44: Self-Retaining DMA Name | C44: Self-Retaining DMA Area (ft2) | D44: Tributary DMA Name(s) | E44: Eff. Tributary DMA Area (ft2) | F44: Effective Tributary / SRA Area Ratio
A46: end_SRA

Sheet SBUH Model
A1: scm 1
A3: SBUH Parameters: | J3: Runoff to SCM: | M3: SCM Parameters:
C4: Design rainfall depth (in) = | D4: ='Project Information'!$D$10 -> 0 | J4: Total runoff (in) = | K4: =D4*(SUM(D8:D10)*E17+D11*G17+D12*I17)/SUM(D8:D12) ->  | N4: Plan area (ft2) = | O4: 1000
C5: Model time step (min) = | D5: =A22-A21 -> 6 | J5: Total runoff (ft3) = | K5: =D4*(SUM(D8:D10)*E17+D11*G17+D12*I17)/12 ->  | N5: Sizing factor = | O5: =O4/SUM(D8:D12) -> 0.1
C7: DMA Summary | D7: Area (ft2) | E7: CN | F7: S | G7: Weighting | H7: Imp. Weighting | N7: Design infiltration rate (in/hr) = | O7: 0.25
C8: New impervious area: | D8: 10000 | E8: 98 | F8: =(1000/E8)-10 -> 0.2040816327 | G8: 1 | H8: 1 | N8: Safety factor = | O8: 1
C9: Replaced impervious in USA: | D9: 0 | E9: 98 | F9: =(1000/E9)-10 -> 0.2040816327 | G9: 0 | H9: 1 | N9: SCM Exfiltration rate (cfs) = | O9: =O4*(O7/12/3600)/O8 -> 0.005787037037
C10: Replaced impervious not USA: | D10: 0 | E10: 98 | F10: =(1000/E10)-10 -> 0.2040816327 | G10: 0.5 | H10: 1 | N10: Drainage time (hours) = | O10: =(VLOOKUP(1440,A21:P1221,16)/O9)/3600 -> 
C11: Landscape area: | D11: 0 | E11: 68 | F11: =(1000/E11)-10 -> 4.705882353 | G11: 1 | H11: =G17/E17 ->  | N11: Minimum storage volume (ft3) = | O11: =MAX(O4*1*'Lookups, Constants'!$F$3,MAX(P21:P1221)*IF(O10>48,1.2,1)) -> 
C12: Solid unit pavers set in sand: | D12: 0 | E12: 89 | F12: =(1000/E12)-10 -> 1.235955056 | G12: 1 | H12: =I17/E17 ->  | N12: Gravel volume (ft3) = | O12: =O11/'Lookups, Constants'!$F$3 -> 
C13: Non-runoff generating area: | D13: =SUMIF('Project Information'!$J$21:J22,"<69",'Project Information'!$D$21:D22) -> 0 | E13: N/A | F13: N/A | G13: 0 | H13: 0 | N13: Gravel depth (ft) = | O13: =MAX(1,O12/O4) -> 
C14: Weighted impervious (ft2) = | D14: =SUMPRODUCT(D8:D13,H8:H13) -> 
C15: Travel path length (ft) = | D15: =SQRT(2*SUM(D8,D11:D13)) -> 141.4213562 | O15: % inflow that
C16: Time of concentration (min) = | D16: =MAX(5,60*0.007*(0.011*D15)^0.8/D4^0.5/0.005^0.4) ->  | E16: (rain/runoff) | G16: (rain/runoff) | I16: (rain/runoff) | M16: runoff % | N16: direct rain vol | O16: is exfiltrated | P16: (max/total vol.)
E17: =MAX(E21:E1221)/$D$4 ->  | G17: =MAX(G21:G1221)/$D$4 ->  | I17: =MAX(I21:I1221)/$D$4 ->  | M17: =SUM(M21:M741)/(($D$4/12)*SUM(D$8:D$12)) ->  | N17: =SUM(N21:N741) -> 0 | O17: =-SUM(O21:O741)/SUM(M21:N741) ->  | P17: =MAX(P21:P741)/SUM($M$21:$N$741) -> 
A18: SBUH Runoff Calculations | M18: Bioretention Hydraulics
E19: Impervious | G19: Landscape | I19: Solid unit pavers set in sand
A20: Time (minutes) | B20: Distribution (Type I) | C20: Rainfall Depth (in) | D20: Cumulative Rainfall (in) | E20: Cumulative Runoff Depth (in) | F20: Instantaneous Runoff (in) | G20: Cumulative Runoff Depth (in) | H20: Instantaneous Runoff (in) | I20: Cumulative Runoff Depth (in) | J20: Instantaneous Runoff (in) | K20: Instantaneous Runoff Rate (cfs) | L20: Routed Flow Rate (cfs) | M20: Stormwater Inflow (ft3) | N20: Direct Rain (ft3) | O20: Exfiltration Outflow (ft3) | P20: Bioretention Water Volume (ft3)
A21: 0 | B21: 0 | C21: =$D$4*'SBUH Model'!B21 -> 0 | D21: =C21 -> 0 | E21: =IF(D21<0.2*F$8,0,(D21-0.2*F$8)^2/(D21+0.8*F$8)) -> 0 | F21: 0 | G21: =IF(D21<0.2*F$11,0,(D21-0.2*F$11)^2/(D21+0.8*F$11)) -> 0 | H21: 0 | I21: =IF(D21<0.2*F$12,0,(D21-0.2*F$12)^2/(D21+0.8*F$12)) -> 0 | J21: 0 | K21: =((F21/12)*SUMPRODUCT(D$8:D$10,G$8:G$10)+(H21/12)*D$11+(J21/12)*D$12)/($D$5*60) -> 0 | L21: 0 | M21: =L21*($D$5*60) -> 0 | N21: =(C21/12)*O$4 -> 0 | O21: 0 | P21: 0
A22: =A21+6 -> 6 | B22: 0.00174 | C22: =$D$4*'SBUH Model'!B22 -> 0 | D22: =C22+D21 -> 0 | E22: =IF(D22<0.2*F$8,0,(D22-0.2*F$8)^2/(D22+0.8*F$8)) -> 0 | F22: =MAX(0,E22-E21) -> 0 | G22: =IF(D22<0.2*F$11,0,(D22-0.2*F$11)^2/(D22+0.8*F$11)) -> 0 | H22: =MAX(0,G22-G21) -> 0 | I22: =IF(D22<0.2*F$12,0,(D22-0.2*F$12)^2/(D22+0.8*F$12)) -> 0 | J22: =MAX(0,I22-I21) -> 0 | K22: =((F22/12)*SUMPRODUCT(D$8:D$10,G$8:G$10)+(H22/12)*D$11+(J22/12)*D$12)/($D$5*60) -> 0 | L22: =MAX(0,L21+(D$5/(2*D$16+D$5))*(K21+K22-2*L21)) ->  | N22: 0 | O22: =-MIN(O$9*D$5*60,SUM(M22,N22,P21)) ->  | P22: =P21+SUM(M22:O22) -> 
A23: =A22+6 -> 12 | B23: 0.001742 | C23: =$D$4*'SBUH Model'!B23 -> 0 | D23: 0 | E23: 0 | F23: =MAX(0,E23-E22) -> 0 | G23: 0 | H23: 0 | I23: 0 | J23: 0 | K23: =((F23/12)*SUMPRODUCT(D$8:D$10,G$8:G$10)+(H23/12)*D$11+(J23/12)*D$12)/($D$5*60) -> 0 | L23: =MAX(0,L22+(D$5/(2*D$16+D$5))*(K22+K23-2*L22)) ->  | N23: 0 | P23: =P22+SUM(M23:O23) -> 
A24: 18 | B24: 0.001742 | C24: =$D$4*'SBUH Model'!B24 -> 0 | D24: 0 | E24: 0 | F24: 0 | G24: 0 | H24: 0 | I24: 0 | J24: 0 | K24: 0 | N24: 0
A25: 24 | B25: 0.001744 | C25: =$D$4*'SBUH Model'!B25 -> 0 | D25: 0 | E25: 0 | F25: 0 | G25: 0 | H25: 0 | I25: 0 | J25: 0 | K25: 0 | N25: 0
A26: 30 | B26: 0.001744 | C26: =$D$4*'SBUH Model'!B26 -> 0 | D26: 0 | E26: 0 | F26: 0 | G26: 0 | H26: 0 | I26: 0 | J26: 0 | K26: 0 | N26: 0
A27: 36 | B27: 0.001746 | C27: =$D$4*'SBUH Model'!B27 -> 0 | D27: 0 | E27: 0 | F27: 0 | G27: 0 | H27: 0 | I27: 0 | J27: 0 | K27: 0 | N27: 0
A28: 42 | B28: 0.001746 | C28: =$D$4*'SBUH Model'!B28 -> 0 | D28: 0 | E28: 0 | F28: 0 | G28: 0 | H28: 0 | I28: 0 | J28: 0 | K28: 0 | N28: 0
A29: 48 | B29: 0.001748 | C29: =$D$4*'SBUH Model'!B29 -> 0 | D29: 0 | E29: 0 | F29: 0 | G29: 0 | H29: 0 | I29: 0 | J29: 0 | K29: 0 | N29: 0
A30: 54 | B30: 0.001748 | C30: =$D$4*'SBUH Model'!B30 -> 0 | D30: 0 | E30: 0 | F30: 0 | G30: 0 | H30: 0 | I30: 0 | J30: 0 | K30: 0 | N30: 0
A31: 60 | B31: 0.00175 | C31: =$D$4*'SBUH Model'!B31 -> 0 | D31: 0 | E31: 0 | F31: 0 | G31: 0 | H31: 0 | I31: 0 | J31: 0 | K31: 0 | N31: 0
A32: 66 | B32: 0.00175 | C32: =$D$4*'SBUH Model'!B32 -> 0 | D32: 0 | E32: 0 | F32: 0 | G32: 0 | H32: 0 | I32: 0 | J32: 0 | K32: 0 | N32: 0
A33: 72 | B33: 0.001752 | C33: =$D$4*'SBUH Model'!B33 -> 0 | D33: 0 | E33: 0 | F33: 0 | G33: 0 | H33: 0 | I33: 0 | J33: 0 | K33: 0 | N33: 0
A34: 78 | B34: 0.001752 | C34: =$D$4*'SBUH Model'!B34 -> 0 | D34: 0 | E34: 0 | F34: 0 | G34: 0 | H34: 0 | I34: 0 | J34: 0 | K34: 0 | N34: 0
A35: 84 | B35: 0.001754 | C35: =$D$4*'SBUH Model'!B35 -> 0 | D35: 0 | E35: 0 | F35: 0 | G35: 0 | H35: 0 | I35: 0 | J35: 0 | K35: 0 | N35: 0
A36: 90 | B36: 0.001754 | C36: =$D$4*'SBUH Model'!B36 -> 0 | D36: 0 | E36: 0 | F36: 0 | G36: 0 | H36: 0 | I36: 0 | J36: 0 | K36: 0 | N36: 0
A37: 96 | B37: 0.001756 | C37: =$D$4*'SBUH Model'!B37 -> 0 | D37: 0 | E37: 0 | F37: 0 | G37: 0 | H37: 0 | I37: 0 | J37: 0 | K37: 0 | N37: 0
A38: 102 | B38: 0.001756 | C38: =$D$4*'SBUH Model'!B38 -> 0 | D38: 0 | E38: 0 | F38: 0 | G38: 0 | H38: 0 | I38: 0 | J38: 0 | K38: 0 | N38: 0
A39: 108 | B39: 0.001758 | C39: =$D$4*'SBUH Model'!B39 -> 0 | D39: 0 | E39: 0 | F39: 0 | G39: 0 | H39: 0 | I39: 0 | J39: 0 | K39: 0 | N39: 0
A40: 114 | B40: 0.001758 | C40: =$D$4*'SBUH Model'!B40 -> 0 | D40: 0 | E40: 0 | F40: 0 | G40: 0 | H40: 0 | I40: 0 | J40: 0 | K40: 0 | N40: 0
A41: 120 | B41: 0.00176 | C41: =$D$4*'SBUH Model'!B41 -> 0 | D41: 0 | E41: 0 | F41: 0 | G41: 0 | H41: 0 | I41: 0 | J41: 0 | K41: 0 | N41: 0
A42: 126 | B42: 0.001775 | C42: =$D$4*'SBUH Model'!B42 -> 0 | D42: 0 | E42: 0 | F42: 0 | G42: 0 | H42: 0 | I42: 0 | J42: 0 | K42: 0 | N42: 0
A43: 132 | B43: 0.001803 | C43: =$D$4*'SBUH Model'!B43 -> 0 | D43: 0 | E43: 0 | F43: 0 | G43: 0 | H43: 0 | I43: 0 | J43: 0 | K43: 0 | N43: 0
A44: 138 | B44: 0.001833 | C44: =$D$4*'SBUH Model'!B44 -> 0 | D44: 0 | E44: 0 | F44: 0 | G44: 0 | H44: 0 | I44: 0 | J44: 0 | K44: 0 | N44: 0
A45: 144 | B45: 0.001861 | C45: =$D$4*'SBUH Model'!B45 -> 0 | D45: 0 | E45: 0 | F45: 0 | G45: 0 | H45: 0 | I45: 0 | J45: 0 | K45: 0 | N45: 0
A46: 150 | B46: 0.001891 | C46: =$D$4*'SBUH Model'!B46 -> 0 | D46: 0 | E46: 0 | F46: 0 | G46: 0 | H46: 0 | I46: 0 | J46: 0 | K46: 0 | N46: 0
A47: 156 | B47: 0.001919 | C47: =$D$4*'SBUH Model'!B47 -> 0 | D47: 0 | E47: 0 | F47: 0 | G47: 0 | H47: 0 | I47: 0 | J47: 0 | K47: 0 | N47: 0
A48: 162 | B48: 0.001948 | C48: =$D$4*'SBUH Model'!B48 -> 0 | D48: 0 | E48: 0 | F48: 0 | G48: 0 | H48: 0 | I48: 0 | J48: 0 | K48: 0 | N48: 0
A49: 168 | B49: 0.001978 | C49: =$D$4*'SBUH Model'!B49 -> 0 | D49: 0 | E49: 0 | F49: 0 | G49: 0 | H49: 0 | I49: 0 | J49: 0 | K49: 0 | N49: 0
A50: 174 | B50: 0.002006 | C50: =$D$4*'SBUH Model'!B50 -> 0 | D50: 0 | E50: 0 | F50: 0 | G50: 0 | H50: 0 | I50: 0 | J50: 0 | K50: 0 | N50: 0
A51: 180 | B51: 0.002036 | C51: =$D$4*'SBUH Model'!B51 -> 0 | D51: 0 | E51: 0 | F51: 0 | G51: 0 | H51: 0 | I51: 0 | J51: 0 | K51: 0 | N51: 0
A52: 186 | B52: 0.002064 | C52: =$D$4*'SBUH Model'!B52 -> 0 | D52: 0 | E52: 0 | F52: 0 | G52: 0 | H52: 0 | I52: 0 | J52: 0 | K52: 0 | N52: 0
A53: 192 | B53: 0.002094 | C53: =$D$4*'SBUH Model'!B53 -> 0 | D53: 0 | E53: 0 | F53: 0 | G53: 0 | H53: 0 | I53: 0 | J53: 0 | K53: 0 | N53: 0
A54: 198 | B54: 0.002122 | C54: =$D$4*'SBUH Model'!B54 -> 0 | D54: 0 | E54: 0 | F54: 0 | G54: 0 | H54: 0 | I54: 0 | J54: 0 | K54: 0 | N54: 0
A55: 204 | B55: 0.002152 | C55: =$D$4*'SBUH Model'!B55 -> 0 | D55: 0 | E55: 0 | F55: 0 | G55: 0 | H55: 0 | I55: 0 | J55: 0 | K55: 0 | N55: 0
A56: 210 | B56: 0.00218 | C56: =$D$4*'SBUH Model'!B56 -> 0 | D56: 0 | E56: 0 | F56: 0 | G56: 0 | H56: 0 | I56: 0 | J56: 0 | K56: 0 | N56: 0
A57: 216 | B57: 0.00221 | C57: =$D$4*'SBUH Model'!B57 -> 0 | D57: 0 | E57: 0 | F57: 0 | G57: 0 | H57: 0 | I57: 0 | J57: 0 | K57: 0 | N57: 0
A58: 222 | B58: 0.002238 | C58: =$D$4*'SBUH Model'!B58 -> 0 | D58: 0 | E58: 0 | F58: 0 | G58: 0 | H58: 0 | I58: 0 | J58: 0 | K58: 0 | N58: 0
A59: 228 | B59: 0.002268 | C59: =$D$4*'SBUH Model'!B59 -> 0 | D59: 0 | E59: 0 | F59: 0 | G59: 0 | H59: 0 | I59: 0 | J59: 0 | K59: 0 | N59: 0
A60: 234 | B60: 0.002297 | C60: =$D$4*'SBUH Model'!B60 -> 0 | D60: 0 | E60: 0 | F60: 0 | G60: 0 | H60: 0 | I60: 0 | J60: 0 | K60: 0 | N60: 0
A61: 240 | B61: 0.002325 | C61: =$D$4*'SBUH Model'!B61 -> 0 | D61: 0 | E61: 0 | F61: 0 | G61: 0 | H61: 0 | I61: 0 | J61: 0 | K61: 0 | N61: 0
A62: 246 | B62: 0.002345 | C62: =$D$4*'SBUH Model'!B62 -> 0 | D62: 0 | E62: 0 | F62: 0 | G62: 0 | H62: 0 | I62: 0 | J62: 0 | K62: 0 | N62: 0
A63: 252 | B63: 0.002357 | C63: =$D$4*'SBUH Model'!B63 -> 0 | D63: 0 | E63: 0 | F63: 0 | G63: 0 | H63: 0 | I63: 0 | J63: 0 | K63: 0 | N63: 0
A64: 258 | B64: 0.002368 | C64: =$D$4*'SBUH Model'!B64 -> 0 | D64: 0 | E64: 0 | F64: 0 | G64: 0 | H64: 0 | I64: 0 | J64: 0 | K64: 0 | N64: 0
A65: 264 | B65: 0.002378 | C65: =$D$4*'SBUH Model'!B65 -> 0 | D65: 0 | E65: 0 | F65: 0 | G65: 0 | H65: 0 | I65: 0 | J65: 0 | K65: 0 | N65: 0
A66: 270 | B66: 0.002389 | C66: =$D$4*'SBUH Model'!B66 -> 0 | D66: 0 | E66: 0 | F66: 0 | G66: 0 | H66: 0 | I66: 0 | J66: 0 | K66: 0 | N66: 0
A67: 276 | B67: 0.002401 | C67: =$D$4*'SBUH Model'!B67 -> 0 | D67: 0 | E67: 0 | F67: 0 | G67: 0 | H67: 0 | I67: 0 | J67: 0 | K67: 0 | N67: 0
A68: 282 | B68: 0.002411 | C68: =$D$4*'SBUH Model'!B68 -> 0 | D68: 0 | E68: 0 | F68: 0 | G68: 0 | H68: 0 | I68: 0 | J68: 0 | K68: 0 | N68: 0
A69: 288 | B69: 0.002423 | C69: =$D$4*'SBUH Model'!B69 -> 0 | D69: 0 | E69: 0 | F69: 0 | G69: 0 | H69: 0 | I69: 0 | J69: 0 | K69: 0 | N69: 0
A70: 294 | B70: 0.002433 | C70: =$D$4*'SBUH Model'!B70 -> 0 | D70: 0 | E70: 0 | F70: 0 | G70: 0 | H70: 0 | I70: 0 | J70: 0 | K70: 0 | N70: 0
A71: 300 | B71: 0.002445 | C71: =$D$4*'SBUH Model'!B71 -> 0 | D71: 0 | E71: 0 | F71: 0 | G71: 0 | H71: 0 | I71: 0 | J71: 0 | K71: 0 | N71: 0
A72: 306 | B72: 0.002455 | C72: =$D$4*'SBUH Model'!B72 -> 0 | D72: 0 | E72: 0 | F72: 0 | G72: 0 | H72: 0 | I72: 0 | J72: 0 | K72: 0 | N72: 0
A73: 312 | B73: 0.002467 | C73: =$D$4*'SBUH Model'!B73 -> 0 | D73: 0 | E73: 0 | F73: 0 | G73: 0 | H73: 0 | I73: 0 | J73: 0 | K73: 0 | N73: 0
A74: 318 | B74: 0.002478 | C74: =$D$4*'SBUH Model'!B74 -> 0 | D74: 0 | E74: 0 | F74: 0 | G74: 0 | H74: 0 | I74: 0 | J74: 0 | K74: 0 | N74: 0
A75: 324 | B75: 0.002488 | C75: =$D$4*'SBUH Model'!B75 -> 0 | D75: 0 | E75: 0 | F75: 0 | G75: 0 | H75: 0 | I75: 0 | J75: 0 | K75: 0 | N75: 0
A76: 330 | B76: 0.002499 | C76: =$D$4*'SBUH Model'!B76 -> 0 | D76: 0 | E76: 0 | F76: 0 | G76: 0 | H76: 0 | I76: 0 | J76: 0 | K76: 0 | N76: 0
A77: 336 | B77: 0.002511 | C77: =$D$4*'SBUH Model'!B77 -> 0 | D77: 0 | E77: 0 | F77: 0 | G77: 0 | H77: 0 | I77: 0 | J77: 0 | K77: 0 | N77: 0
A78: 342 | B78: 0.002522 | C78: =$D$4*'SBUH Model'!B78 -> 0 | D78: 0 | E78: 0 | F78: 0 | G78: 0 | H78: 0 | I78: 0 | J78: 0 | K78: 0 | N78: 0
A79: 348 | B79: 0.002532 | C79: =$D$4*'SBUH Model'!B79 -> 0 | D79: 0 | E79: 0 | F79: 0 | G79: 0 | H79: 0 | I79: 0 | J79: 0 | K79: 0 | N79: 0
A80: 354 | B80: 0.002543 | C80: =$D$4*'SBUH Model'!B80 -> 0 | D80: 0 | E80: 0 | F80: 0 | G80: 0 | H80: 0 | I80: 0 | J80: 0 | K80: 0 | N80: 0
A81: 360 | B81: 0.002555 | C81: =$D$4*'SBUH Model'!B81 -> 0 | D81: 0 | E81: 0 | F81: 0 | G81: 0 | H81: 0 | I81: 0 | J81: 0 | K81: 0 | N81: 0
A82: 366 | B82: 0.002614 | C82: =$D$4*'SBUH Model'!B82 -> 0 | D82: 0 | E82: 0 | F82: 0 | G82: 0 | H82: 0 | I82: 0 | J82: 0 | K82: 0 | N82: 0
A83: 372 | B83: 0.002722 | C83: =$D$4*'SBUH Model'!B83 -> 0 | D83: 0 | E83: 0 | F83: 0 | G83: 0 | H83: 0 | I83: 0 | J83: 0 | K83: 0 | N83: 0
A84: 378 | B84: 0.00283 | C84: =$D$4*'SBUH Model'!B84 -> 0 | D84: 0 | E84: 0 | F84: 0 | G84: 0 | H84: 0 | I84: 0 | J84: 0 | K84: 0 | N84: 0
A85: 384 | B85: 0.002938 | C85: =$D$4*'SBUH Model'!B85 -> 0 | D85: 0 | E85: 0 | F85: 0 | G85: 0 | H85: 0 | I85: 0 | J85: 0 | K85: 0 | M85: =L85*($D$5*60) ->  | N85: =(C85/12)*O$4 -> 0
A86: 390 | B86: 0.003046 | C86: =$D$4*'SBUH Model'!B86 -> 0 | D86: =C86+D85 -> 0 | E86: =IF(D86<0.2*F$8,0,(D86-0.2*F$8)^2/(D86+0.8*F$8)) -> 0 | F86: 0 | G86: =IF(D86<0.2*F$11,0,(D86-0.2*F$11)^2/(D86+0.8*F$11)) -> 0 | H86: 0 | I86: =IF(D86<0.2*F$12,0,(D86-0.2*F$12)^2/(D86+0.8*F$12)) -> 0 | J86: 0 | K86: =((F86/12)*SUMPRODUCT(D$8:D$10,G$8:G$10)+(H86/12)*D$11+(J86/12)*D$12)/($D$5*60) -> 0 | N86: 0 | O86: =-MIN(O$9*D$5*60,SUM(M86,N86,P85)) -> 
A87: =A86+6 -> 396 | B87: 0.003154 | C87: =$D$4*'SBUH Model'!B87 -> 0 | D87: 0 | E87: 0 | F87: =MAX(0,E87-E86) -> 0 | G87: 0 | H87: 0 | I87: 0 | J87: 0 | K87: 0 | L87: =MAX(0,L86+(D$5/(2*D$16+D$5))*(K86+K87-2*L86)) ->  | N87: 0 | P87: =P86+SUM(M87:O87) -> 
A88: 402 | B88: 0.003262 | C88: =$D$4*'SBUH Model'!B88 -> 0 | D88: 0 | E88: 0 | F88: 0 | G88: 0 | H88: 0 | I88: 0 | J88: 0 | K88: 0 | N88: 0
A89: 408 | B89: 0.00337 | C89: =$D$4*'SBUH Model'!B89 -> 0 | D89: 0 | E89: 0 | F89: 0 | G89: 0 | H89: 0 | I89: 0 | J89: 0 | K89: 0 | N89: 0
A90: 414 | B90: 0.003478 | C90: =$D$4*'SBUH Model'!B90 -> 0 | D90: 0 | E90: 0 | F90: 0 | G90: 0 | H90: 0 | I90: 0 | J90: 0 | K90: 0 | N90: 0
A91: 420 | B91: 0.003586 | C91: =$D$4*'SBUH Model'!B91 -> 0 | D91: 0 | E91: 0 | F91: 0 | G91: 0 | H91: 0 | I91: 0 | J91: 0 | K91: 0 | N91: 0
A92: 426 | B92: 0.003656 | C92: =$D$4*'SBUH Model'!B92 -> 0 | D92: 0 | E92: 0 | F92: 0 | G92: 0 | H92: 0 | I92: 0 | J92: 0 | K92: 0 | N92: 0
A93: 432 | B93: 0.003688 | C93: =$D$4*'SBUH Model'!B93 -> 0 | D93: 0 | E93: 0 | F93: 0 | G93: 0 | H93: 0 | I93: 0 | J93: 0 | K93: 0 | N93: 0
A94: 438 | B94: 0.00372 | C94: =$D$4*'SBUH Model'!B94 -> 0 | D94: 0 | E94: 0 | F94: 0 | G94: 0 | H94: 0 | I94: 0 | J94: 0 | K94: 0 | N94: 0
A95: 444 | B95: 0.003752 | C95: =$D$4*'SBUH Model'!B95 -> 0 | D95: 0 | E95: 0 | F95: 0 | G95: 0 | H95: 0 | I95: 0 | J95: 0 | K95: 0 | N95: 0
A96: 450 | B96: 0.003784 | C96: =$D$4*'SBUH Model'!B96 -> 0 | D96: 0 | E96: 0 | F96: 0 | G96: 0 | H96: 0 | I96: 0 | J96: 0 | K96: 0 | N96: 0
A97: 456 | B97: 0.003816 | C97: =$D$4*'SBUH Model'!B97 -> 0 | D97: 0 | E97: 0 | F97: 0 | G97: 0 | H97: 0 | I97: 0 | J97: 0 | K97: 0 | N97: 0
A98: 462 | B98: 0.003848 | C98: =$D$4*'SBUH Model'!B98 -> 0 | D98: 0 | E98: 0 | F98: 0 | G98: 0 | H98: 0 | I98: 0 | J98: 0 | K98: 0 | N98: 0
A99: 468 | B99: 0.00388 | C99: =$D$4*'SBUH Model'!B99 -> 0 | D99: 0 | E99: 0 | F99: 0 | G99: 0 | H99: 0 | I99: 0 | J99: 0 | K99: 0 | N99: 0
A100: 474 | B100: 0.003912 | C100: =$D$4*'SBUH Model'!B100 -> 0 | D100: 0 | E100: 0 | F100: 0 | G100: 0 | H100: 0 | I100: 0 | J100: 0 | K100: 0 | N100: 0
A101: 480 | B101: 0.003944 | C101: =$D$4*'SBUH Model'!B101 -> 0 | D101: 0 | E101: 0 | F101: 0 | G101: 0 | H101: 0 | I101: 0 | J101: 0 | K101: 0 | N101: 0
A102: 486 | B102: 0.004168 | C102: =$D$4*'SBUH Model'!B102 -> 0 | D102: 0 | E102: 0 | F102: 0 | G102: 0 | H102: 0 | I102: 0 | J102: 0 | K102: 0 | N102: 0
A103: 492 | B103: 0.004584 | C103: =$D$4*'SBUH Model'!B103 -> 0 | D103: 0 | E103: 0 | F103: 0 | G103: 0 | H103: 0 | I103: 0 | J103: 0 | K103: 0 | N103: 0
A104: 498 | B104: 0.005 | C104: =$D$4*'SBUH Model'!B104 -> 0 | D104: 0 | E104: 0 | F104: 0 | G104: 0 | H104: 0 | I104: 0 | J104: 0 | K104: 0 | N104: 0
A105: 504 | B105: 0.005416 | C105: =$D$4*'SBUH Model'!B105 -> 0 | D105: 0 | E105: 0 | F105: 0 | G105: 0 | H105: 0 | I105: 0 | J105: 0 | K105: 0 | N105: 0
A106: 510 | B106: 0.005832 | C106: =$D$4*'SBUH Model'!B106 -> 0 | D106: 0 | E106: 0 | F106: 0 | G106: 0 | H106: 0 | I106: 0 | J106: 0 | K106: 0 | N106: 0
A107: 516 | B107: 0.006232 | C107: =$D$4*'SBUH Model'!B107 -> 0 | D107: 0 | E107: 0 | F107: 0 | G107: 0 | H107: 0 | I107: 0 | J107: 0 | K107: 0 | N107: 0
A108: 522 | B108: 0.006616 | C108: =$D$4*'SBUH Model'!B108 -> 0 | D108: 0 | E108: 0 | F108: 0 | G108: 0 | H108: 0 | I108: 0 | J108: 0 | K108: 0 | N108: 0
A109: 528 | B109: 0.007 | C109: =$D$4*'SBUH Model'!B109 -> 0 | D109: 0 | E109: 0 | F109: 0 | G109: 0 | H109: 0 | I109: 0 | J109: 0 | K109: 0 | N109: 0
A110: 534 | B110: 0.007384 | C110: =$D$4*'SBUH Model'!B110 -> 0 | D110: 0 | E110: 0 | F110: 0 | G110: 0 | H110: 0 | I110: 0 | J110: 0 | K110: 0 | N110: 0
A111: 540 | B111: 0.007768 | C111: =$D$4*'SBUH Model'!B111 -> 0 | D111: 0 | E111: 0 | F111: 0 | G111: 0 | H111: 0 | I111: 0 | J111: 0 | K111: 0 | N111: 0
A112: 546 | B112: 0.008328 | C112: =$D$4*'SBUH Model'!B112 -> 0 | D112: 0 | E112: 0 | F112: 0 | G112: 0 | H112: 0 | I112: 0 | J112: 0 | K112: 0 | N112: 0
A113: 552 | B113: 0.009064 | C113: =$D$4*'SBUH Model'!B113 -> 0 | D113: 0 | E113: 0 | F113: 0 | G113: 0 | H113: 0 | I113: 0 | J113: 0 | K113: 0 | N113: 0
A114: 558 | B114: 0.0098 | C114: =$D$4*'SBUH Model'!B114 -> 0 | D114: 0 | E114: 0 | F114: 0 | G114: 0 | H114: 0 | I114: 0 | J114: 0 | K114: 0 | N114: 0
A115: 564 | B115: 0.010536 | C115: =$D$4*'SBUH Model'!B115 -> 0 | D115: 0 | E115: 0 | F115: 0 | G115: 0 | H115: 0 | I115: 0 | J115: 0 | K115: 0 | N115: 0
A116: 570 | B116: 0.011272 | C116: =$D$4*'SBUH Model'!B116 -> 0 | D116: 0 | E116: 0 | F116: 0 | G116: 0 | H116: 0 | I116: 0 | J116: 0 | K116: 0 | N116: 0
A117: 576 | B117: 0.016424 | C117: =$D$4*'SBUH Model'!B117 -> 0 | D117: 0 | E117: 0 | F117: 0 | G117: 0 | H117: 0 | I117: 0 | J117: 0 | K117: 0 | N117: 0
A118: 582 | B118: 0.025992 | C118: =$D$4*'SBUH Model'!B118 -> 0 | D118: 0 | E118: 0 | F118: 0 | G118: 0 | H118: 0 | I118: 0 | J118: 0 | K118: 0 | N118: 0
A119: 588 | B119: 0.042427 | C119: =$D$4*'SBUH Model'!B119 -> 0 | D119: 0 | E119: 0 | F119: 0 | G119: 0 | H119: 0 | I119: 0 | J119: 0 | K119: 0 | N119: 0
A120: 594 | B120: 0.075319 | C120: =$D$4*'SBUH Model'!B120 -> 0 | D120: 0 | E120: 0 | F120: 0 | G120: 0 | H120: 0 | I120: 0 | J120: 0 | K120: 0 | N120: 0
A121: 600 | B121: 0.051838 | C121: =$D$4*'SBUH Model'!B121 -> 0 | D121: 0 | E121: 0 | F121: 0 | G121: 0 | H121: 0 | I121: 0 | J121: 0 | K121: 0 | N121: 0
A122: 606 | B122: 0.0172 | C122: =$D$4*'SBUH Model'!B122 -> 0 | D122: 0 | E122: 0 | F122: 0 | G122: 0 | H122: 0 | I122: 0 | J122: 0 | K122: 0 | N122: 0
A123: 612 | B123: 0.0154 | C123: =$D$4*'SBUH Model'!B123 -> 0 | D123: 0 | E123: 0 | F123: 0 | G123: 0 | H123: 0 | I123: 0 | J123: 0 | K123: 0 | N123: 0
A124: 618 | B124: 0.0136 | C124: =$D$4*'SBUH Model'!B124 -> 0 | D124: 0 | E124: 0 | F124: 0 | G124: 0 | H124: 0 | I124: 0 | J124: 0 | K124: 0 | N124: 0
A125: 624 | B125: 0.0118 | C125: =$D$4*'SBUH Model'!B125 -> 0 | D125: 0 | E125: 0 | F125: 0 | G125: 0 | H125: 0 | I125: 0 | J125: 0 | K125: 0 | N125: 0
A126: 630 | B126: 0.01 | C126: =$D$4*'SBUH Model'!B126 -> 0 | D126: 0 | E126: 0 | F126: 0 | G126: 0 | H126: 0 | I126: 0 | J126: 0 | K126: 0 | N126: 0
A127: 636 | B127: 0.00888 | C127: =$D$4*'SBUH Model'!B127 -> 0 | D127: 0 | E127: 0 | F127: 0 | G127: 0 | H127: 0 | I127: 0 | J127: 0 | K127: 0 | N127: 0
A128: 642 | B128: 0.00844 | C128: =$D$4*'SBUH Model'!B128 -> 0 | D128: 0 | E128: 0 | F128: 0 | G128: 0 | H128: 0 | I128: 0 | J128: 0 | K128: 0 | N128: 0
A129: 648 | B129: 0.008 | C129: =$D$4*'SBUH Model'!B129 -> 0 | D129: 0 | E129: 0 | F129: 0 | G129: 0 | H129: 0 | I129: 0 | J129: 0 | K129: 0 | N129: 0
A130: 654 | B130: 0.00756 | C130: =$D$4*'SBUH Model'!B130 -> 0 | D130: 0 | E130: 0 | F130: 0 | G130: 0 | H130: 0 | I130: 0 | J130: 0 | K130: 0 | N130: 0
A131: 660 | B131: 0.00712 | C131: =$D$4*'SBUH Model'!B131 -> 0 | D131: 0 | E131: 0 | F131: 0 | G131: 0 | H131: 0 | I131: 0 | J131: 0 | K131: 0 | N131: 0
A132: 666 | B132: 0.00682 | C132: =$D$4*'SBUH Model'!B132 -> 0 | D132: 0 | E132: 0 | F132: 0 | G132: 0 | H132: 0 | I132: 0 | J132: 0 | K132: 0 | N132: 0
A133: 672 | B133: 0.00666 | C133: =$D$4*'SBUH Model'!B133 -> 0 | D133: 0 | E133: 0 | F133: 0 | G133: 0 | H133: 0 | I133: 0 | J133: 0 | K133: 0 | N133: 0
A134: 678 | B134: 0.0065 | C134: =$D$4*'SBUH Model'!B134 -> 0 | D134: 0 | E134: 0 | F134: 0 | G134: 0 | H134: 0 | I134: 0 | J134: 0 | K134: 0 | N134: 0
A135: 684 | B135: 0.00634 | C135: =$D$4*'SBUH Model'!B135 -> 0 | D135: 0 | E135: 0 | F135: 0 | G135: 0 | H135: 0 | I135: 0 | J135: 0 | K135: 0 | N135: 0
A136: 690 | B136: 0.00618 | C136: =$D$4*'SBUH Model'!B136 -> 0 | D136: 0 | E136: 0 | F136: 0 | G136: 0 | H136: 0 | I136: 0 | J136: 0 | K136: 0 | N136: 0
A137: 696 | B137: 0.00602 | C137: =$D$4*'SBUH Model'!B137 -> 0 | D137: 0 | E137: 0 | F137: 0 | G137: 0 | H137: 0 | I137: 0 | J137: 0 | K137: 0 | N137: 0
A138: 702 | B138: 0.00586 | C138: =$D$4*'SBUH Model'!B138 -> 0 | D138: 0 | E138: 0 | F138: 0 | G138: 0 | H138: 0 | I138: 0 | J138: 0 | K138: 0 | N138: 0
A139: 708 | B139: 0.0057 | C139: =$D$4*'SBUH Model'!B139 -> 0 | D139: 0 | E139: 0 | F139: 0 | G139: 0 | H139: 0 | I139: 0 | J139: 0 | K139: 0 | N139: 0
A140: 714 | B140: 0.00554 | C140: =$D$4*'SBUH Model'!B140 -> 0 | D140: 0 | E140: 0 | F140: 0 | G140: 0 | H140: 0 | I140: 0 | J140: 0 | K140: 0 | N140: 0
A141: 720 | B141: 0.00538 | C141: =$D$4*'SBUH Model'!B141 -> 0 | D141: 0 | E141: 0 | F141: 0 | G141: 0 | H141: 0 | I141: 0 | J141: 0 | K141: 0 | N141: 0
A142: 726 | B142: 0.00525 | C142: =$D$4*'SBUH Model'!B142 -> 0 | D142: 0 | E142: 0 | F142: 0 | G142: 0 | H142: 0 | I142: 0 | J142: 0 | K142: 0 | N142: 0
A143: 732 | B143: 0.00515 | C143: =$D$4*'SBUH Model'!B143 -> 0 | D143: 0 | E143: 0 | F143: 0 | G143: 0 | H143: 0 | I143: 0 | J143: 0 | K143: 0 | N143: 0
A144: 738 | B144: 0.00505 | C144: =$D$4*'SBUH Model'!B144 -> 0 | D144: 0 | E144: 0 | F144: 0 | G144: 0 | H144: 0 | I144: 0 | J144: 0 | K144: 0 | N144: 0
A145: 744 | B145: 0.00495 | C145: =$D$4*'SBUH Model'!B145 -> 0 | D145: 0 | E145: 0 | F145: 0 | G145: 0 | H145: 0 | I145: 0 | J145: 0 | K145: 0 | N145: 0
A146: 750 | B146: 0.00485 | C146: =$D$4*'SBUH Model'!B146 -> 0 | D146: 0 | E146: 0 | F146: 0 | G146: 0 | H146: 0 | I146: 0 | J146: 0 | K146: 0 | N146: 0
A147: 756 | B147: 0.00475 | C147: =$D$4*'SBUH Model'!B147 -> 0 | D147: 0 | E147: 0 | F147: 0 | G147: 0 | H147: 0 | I147: 0 | J147: 0 | K147: 0 | N147: 0
A148: 762 | B148: 0.00465 | C148: =$D$4*'SBUH Model'!B148 -> 0 | D148: 0 | E148: 0 | F148: 0 | G148: 0 | H148: 0 | I148: 0 | J148: 0 | K148: 0 | N148: 0
A149: 768 | B149: 0.00455 | C149: =$D$4*'SBUH Model'!B149 -> 0 | D149: 0 | E149: 0 | F149: 0 | G149: 0 | H149: 0 | I149: 0 | J149: 0 | K149: 0 | M149: =L149*($D$5*60) ->  | N149: =(C149/12)*O$4 -> 0
A150: 774 | B150: 0.00445 | C150: =$D$4*'SBUH Model'!B150 -> 0 | D150: =C150+D149 -> 0 | E150: =IF(D150<0.2*F$8,0,(D150-0.2*F$8)^2/(D150+0.8*F$8)) -> 0 | F150: 0 | G150: =IF(D150<0.2*F$11,0,(D150-0.2*F$11)^2/(D150+0.8*F$11)) -> 0 | H150: 0 | I150: =IF(D150<0.2*F$12,0,(D150-0.2*F$12)^2/(D150+0.8*F$12)) -> 0 | J150: 0 | K150: =((F150/12)*SUMPRODUCT(D$8:D$10,G$8:G$10)+(H150/12)*D$11+(J150/12)*D$12)/($D$5*60) -> 0 | N150: 0 | O150: =-MIN(O$9*D$5*60,SUM(M150,N150,P149)) -> 
A151: =A150+6 -> 780 | B151: 0.00435 | C151: =$D$4*'SBUH Model'!B151 -> 0 | D151: 0 | E151: 0 | F151: =MAX(0,E151-E150) -> 0 | G151: 0 | H151: 0 | I151: 0 | J151: 0 | K151: 0 | L151: =MAX(0,L150+(D$5/(2*D$16+D$5))*(K150+K151-2*L150)) ->  | N151: 0 | P151: =P150+SUM(M151:O151) -> 
A152: 786 | B152: 0.00425 | C152: =$D$4*'SBUH Model'!B152 -> 0 | D152: 0 | E152: 0 | F152: 0 | G152: 0 | H152: 0 | I152: 0 | J152: 0 | K152: 0 | N152: 0
A153: 792 | B153: 0.00415 | C153: =$D$4*'SBUH Model'!B153 -> 0 | D153: 0 | E153: 0 | F153: 0 | G153: 0 | H153: 0 | I153: 0 | J153: 0 | K153: 0 | N153: 0
A154: 798 | B154: 0.00405 | C154: =$D$4*'SBUH Model'!B154 -> 0 | D154: 0 | E154: 0 | F154: 0 | G154: 0 | H154: 0 | I154: 0 | J154: 0 | K154: 0 | N154: 0
A155: 804 | B155: 0.00395 | C155: =$D$4*'SBUH Model'!B155 -> 0 | D155: 0 | E155: 0 | F155: 0 | G155: 0 | H155: 0 | I155: 0 | J155: 0 | K155: 0 | N155: 0
A156: 810 | B156: 0.00385 | C156: =$D$4*'SBUH Model'!B156 -> 0 | D156: 0 | E156: 0 | F156: 0 | G156: 0 | H156: 0 | I156: 0 | J156: 0 | K156: 0 | N156: 0
A157: 816 | B157: 0.00375 | C157: =$D$4*'SBUH Model'!B157 -> 0 | D157: 0 | E157: 0 | F157: 0 | G157: 0 | H157: 0 | I157: 0 | J157: 0 | K157: 0 | N157: 0
A158: 822 | B158: 0.00365 | C158: =$D$4*'SBUH Model'!B158 -> 0 | D158: 0 | E158: 0 | F158: 0 | G158: 0 | H158: 0 | I158: 0 | J158: 0 | K158: 0 | N158: 0
A159: 828 | B159: 0.00355 | C159: =$D$4*'SBUH Model'!B159 -> 0 | D159: 0 | E159: 0 | F159: 0 | G159: 0 | H159: 0 | I159: 0 | J159: 0 | K159: 0 | N159: 0
A160: 834 | B160: 0.00345 | C160: =$D$4*'SBUH Model'!B160 -> 0 | D160: 0 | E160: 0 | F160: 0 | G160: 0 | H160: 0 | I160: 0 | J160: 0 | K160: 0 | N160: 0
A161: 840 | B161: 0.00335 | C161: =$D$4*'SBUH Model'!B161 -> 0 | D161: 0 | E161: 0 | F161: 0 | G161: 0 | H161: 0 | I161: 0 | J161: 0 | K161: 0 | N161: 0
A162: 846 | B162: 0.00329 | C162: =$D$4*'SBUH Model'!B162 -> 0 | D162: 0 | E162: 0 | F162: 0 | G162: 0 | H162: 0 | I162: 0 | J162: 0 | K162: 0 | N162: 0
A163: 852 | B163: 0.00327 | C163: =$D$4*'SBUH Model'!B163 -> 0 | D163: 0 | E163: 0 | F163: 0 | G163: 0 | H163: 0 | I163: 0 | J163: 0 | K163: 0 | N163: 0
A164: 858 | B164: 0.00325 | C164: =$D$4*'SBUH Model'!B164 -> 0 | D164: 0 | E164: 0 | F164: 0 | G164: 0 | H164: 0 | I164: 0 | J164: 0 | K164: 0 | N164: 0
A165: 864 | B165: 0.00323 | C165: =$D$4*'SBUH Model'!B165 -> 0 | D165: 0 | E165: 0 | F165: 0 | G165: 0 | H165: 0 | I165: 0 | J165: 0 | K165: 0 | N165: 0
A166: 870 | B166: 0.00321 | C166: =$D$4*'SBUH Model'!B166 -> 0 | D166: 0 | E166: 0 | F166: 0 | G166: 0 | H166: 0 | I166: 0 | J166: 0 | K166: 0 | N166: 0
A167: 876 | B167: 0.00319 | C167: =$D$4*'SBUH Model'!B167 -> 0 | D167: 0 | E167: 0 | F167: 0 | G167: 0 | H167: 0 | I167: 0 | J167: 0 | K167: 0 | N167: 0
A168: 882 | B168: 0.00317 | C168: =$D$4*'SBUH Model'!B168 -> 0 | D168: 0 | E168: 0 | F168: 0 | G168: 0 | H168: 0 | I168: 0 | J168: 0 | K168: 0 | N168: 0
A169: 888 | B169: 0.00315 | C169: =$D$4*'SBUH Model'!B169 -> 0 | D169: 0 | E169: 0 | F169: 0 | G169: 0 | H169: 0 | I169: 0 | J169: 0 | K169: 0 | N169: 0
A170: 894 | B170: 0.00313 | C170: =$D$4*'SBUH Model'!B170 -> 0 | D170: 0 | E170: 0 | F170: 0 | G170: 0 | H170: 0 | I170: 0 | J170: 0 | K170: 0 | N170: 0
A171: 900 | B171: 0.00311 | C171: =$D$4*'SBUH Model'!B171 -> 0 | D171: 0 | E171: 0 | F171: 0 | G171: 0 | H171: 0 | I171: 0 | J171: 0 | K171: 0 | N171: 0
A172: 906 | B172: 0.00309 | C172: =$D$4*'SBUH Model'!B172 -> 0 | D172: 0 | E172: 0 | F172: 0 | G172: 0 | H172: 0 | I172: 0 | J172: 0 | K172: 0 | N172: 0
A173: 912 | B173: 0.00307 | C173: =$D$4*'SBUH Model'!B173 -> 0 | D173: 0 | E173: 0 | F173: 0 | G173: 0 | H173: 0 | I173: 0 | J173: 0 | K173: 0 | N173: 0
A174: 918 | B174: 0.00305 | C174: =$D$4*'SBUH Model'!B174 -> 0 | D174: 0 | E174: 0 | F174: 0 | G174: 0 | H174: 0 | I174: 0 | J174: 0 | K174: 0 | N174: 0
A175: 924 | B175: 0.00303 | C175: =$D$4*'SBUH Model'!B175 -> 0 | D175: 0 | E175: 0 | F175: 0 | G175: 0 | H175: 0 | I175: 0 | J175: 0 | K175: 0 | N175: 0
A176: 930 | B176: 0.00301 | C176: =$D$4*'SBUH Model'!B176 -> 0 | D176: 0 | E176: 0 | F176: 0 | G176: 0 | H176: 0 | I176: 0 | J176: 0 | K176: 0 | N176: 0
A177: 936 | B177: 0.00299 | C177: =$D$4*'SBUH Model'!B177 -> 0 | D177: 0 | E177: 0 | F177: 0 | G177: 0 | H177: 0 | I177: 0 | J177: 0 | K177: 0 | N177: 0
A178: 942 | B178: 0.00297 | C178: =$D$4*'SBUH Model'!B178 -> 0 | D178: 0 | E178: 0 | F178: 0 | G178: 0 | H178: 0 | I178: 0 | J178: 0 | K178: 0 | N178: 0
A179: 948 | B179: 0.00295 | C179: =$D$4*'SBUH Model'!B179 -> 0 | D179: 0 | E179: 0 | F179: 0 | G179: 0 | H179: 0 | I179: 0 | J179: 0 | K179: 0 | N179: 0
A180: 954 | B180: 0.00293 | C180: =$D$4*'SBUH Model'!B180 -> 0 | D180: 0 | E180: 0 | F180: 0 | G180: 0 | H180: 0 | I180: 0 | J180: 0 | K180: 0 | N180: 0
A181: 960 | B181: 0.00291 | C181: =$D$4*'SBUH Model'!B181 -> 0 | D181: 0 | E181: 0 | F181: 0 | G181: 0 | H181: 0 | I181: 0 | J181: 0 | K181: 0 | N181: 0
A182: 966 | B182: 0.00289 | C182: =$D$4*'SBUH Model'!B182 -> 0 | D182: 0 | E182: 0 | F182: 0 | G182: 0 | H182: 0 | I182: 0 | J182: 0 | K182: 0 | N182: 0
A183: 972 | B183: 0.00287 | C183: =$D$4*'SBUH Model'!B183 -> 0 | D183: 0 | E183: 0 | F183: 0 | G183: 0 | H183: 0 | I183: 0 | J183: 0 | K183: 0 | N183: 0
A184: 978 | B184: 0.00285 | C184: =$D$4*'SBUH Model'!B184 -> 0 | D184: 0 | E184: 0 | F184: 0 | G184: 0 | H184: 0 | I184: 0 | J184: 0 | K184: 0 | N184: 0
A185: 984 | B185: 0.00283 | C185: =$D$4*'SBUH Model'!B185 -> 0 | D185: 0 | E185: 0 | F185: 0 | G185: 0 | H185: 0 | I185: 0 | J185: 0 | K185: 0 | N185: 0
A186: 990 | B186: 0.00281 | C186: =$D$4*'SBUH Model'!B186 -> 0 | D186: 0 | E186: 0 | F186: 0 | G186: 0 | H186: 0 | I186: 0 | J186: 0 | K186: 0 | N186: 0
A187: 996 | B187: 0.00279 | C187: =$D$4*'SBUH Model'!B187 -> 0 | D187: 0 | E187: 0 | F187: 0 | G187: 0 | H187: 0 | I187: 0 | J187: 0 | K187: 0 | N187: 0
A188: 1002 | B188: 0.00277 | C188: =$D$4*'SBUH Model'!B188 -> 0 | D188: 0 | E188: 0 | F188: 0 | G188: 0 | H188: 0 | I188: 0 | J188: 0 | K188: 0 | N188: 0
A189: 1008 | B189: 0.00275 | C189: =$D$4*'SBUH Model'!B189 -> 0 | D189: 0 | E189: 0 | F189: 0 | G189: 0 | H189: 0 | I189: 0 | J189: 0 | K189: 0 | N189: 0
A190: 1014 | B190: 0.00273 | C190: =$D$4*'SBUH Model'!B190 -> 0 | D190: 0 | E190: 0 | F190: 0 | G190: 0 | H190: 0 | I190: 0 | J190: 0 | K190: 0 | N190: 0
A191: 1020 | B191: 0.00271 | C191: =$D$4*'SBUH Model'!B191 -> 0 | D191: 0 | E191: 0 | F191: 0 | G191: 0 | H191: 0 | I191: 0 | J191: 0 | K191: 0 | N191: 0
A192: 1026 | B192: 0.00269 | C192: =$D$4*'SBUH Model'!B192 -> 0 | D192: 0 | E192: 0 | F192: 0 | G192: 0 | H192: 0 | I192: 0 | J192: 0 | K192: 0 | N192: 0
A193: 1032 | B193: 0.00267 | C193: =$D$4*'SBUH Model'!B193 -> 0 | D193: 0 | E193: 0 | F193: 0 | G193: 0 | H193: 0 | I193: 0 | J193: 0 | K193: 0 | N193: 0
A194: 1038 | B194: 0.00265 | C194: =$D$4*'SBUH Model'!B194 -> 0 | D194: 0 | E194: 0 | F194: 0 | G194: 0 | H194: 0 | I194: 0 | J194: 0 | K194: 0 | N194: 0
A195: 1044 | B195: 0.00263 | C195: =$D$4*'SBUH Model'!B195 -> 0 | D195: 0 | E195: 0 | F195: 0 | G195: 0 | H195: 0 | I195: 0 | J195: 0 | K195: 0 | N195: 0
A196: 1050 | B196: 0.00261 | C196: =$D$4*'SBUH Model'!B196 -> 0 | D196: 0 | E196: 0 | F196: 0 | G196: 0 | H196: 0 | I196: 0 | J196: 0 | K196: 0 | N196: 0
A197: 1056 | B197: 0.00259 | C197: =$D$4*'SBUH Model'!B197 -> 0 | D197: 0 | E197: 0 | F197: 0 | G197: 0 | H197: 0 | I197: 0 | J197: 0 | K197: 0 | N197: 0
A198: 1062 | B198: 0.00257 | C198: =$D$4*'SBUH Model'!B198 -> 0 | D198: 0 | E198: 0 | F198: 0 | G198: 0 | H198: 0 | I198: 0 | J198: 0 | K198: 0 | N198: 0
A199: 1068 | B199: 0.00255 | C199: =$D$4*'SBUH Model'!B199 -> 0 | D199: 0 | E199: 0 | F199: 0 | G199: 0 | H199: 0 | I199: 0 | J199: 0 | K199: 0 | N199: 0
A200: 1074 | B200: 0.00253 | C200: =$D$4*'SBUH Model'!B200 -> 0 | D200: 0 | E200: 0 | F200: 0 | G200: 0 | H200: 0 | I200: 0 | J200: 0 | K200: 0 | N200: 0
A201: 1080 | B201: 0.00251 | C201: =$D$4*'SBUH Model'!B201 -> 0 | D201: 0 | E201: 0 | F201: 0 | G201: 0 | H201: 0 | I201: 0 | J201: 0 | K201: 0 | N201: 0
A202: 1086 | B202: 0.00249 | C202: =$D$4*'SBUH Model'!B202 -> 0 | D202: 0 | E202: 0 | F202: 0 | G202: 0 | H202: 0 | I202: 0 | J202: 0 | K202: 0 | N202: 0
... 1019 more rows

Sheet SCS,SBUH Equations
A1: SCS Type I Distribution (6-min) | G1: Stormwater Runoff and Routing Equations:
A3: Step | B3: Minute | C3: Cummulative Distribution | D3: Incremental Distribution
A4: 0 | B4: 0 | C4: 0 | D4: 0 | G4: Computing Runoff (SCS and SBUH are the same):
A5: 1 | B5: 6 | C5: 0.00174 | D5: =C5-C4 -> 0.00174
A6: 2 | B6: 12 | C6: 0.003482 | D6: =C6-C5 -> 0.001742
A7: 3 | B7: 18 | C7: 0.005224 | D7: 0.001742 | J7: where:
A8: 4 | B8: 24 | C8: 0.006968 | D8: 0.001744 | J8: R = runoff (in)
A9: 5 | B9: 30 | C9: 0.008712 | D9: 0.001744 | J9: P = rainfall (in)
A10: 6 | B10: 36 | C10: 0.010458 | D10: 0.001746 | J10: Ia = initial abstraction (in)
A11: 7 | B11: 42 | C11: 0.012204 | D11: 0.001746 | J11: S = potential maximum soil moisture retention after runoff begins (in)
A12: 8 | B12: 48 | C12: 0.013952 | D12: 0.001748 | J12: CN = runoff curve number
A13: 9 | B13: 54 | C13: 0.0157 | D13: 0.001748
A14: 10 | B14: 60 | C14: 0.01745 | D14: 0.00175
A15: 11 | B15: 66 | C15: 0.0192 | D15: 0.00175
A16: 12 | B16: 72 | C16: 0.020952 | D16: 0.001752
A17: 13 | B17: 78 | C17: 0.022704 | D17: 0.001752
A18: 14 | B18: 84 | C18: 0.024458 | D18: 0.001754 | G18: SBUH Runoff Routing:
A19: 15 | B19: 90 | C19: 0.026212 | D19: 0.001754
A20: 16 | B20: 96 | C20: 0.027968 | D20: 0.001756 | L20: where:
A21: 17 | B21: 102 | C21: 0.029724 | D21: 0.001756 | L21: It = instantaneous hydrograph (cfs)
A22: 18 | B22: 108 | C22: 0.031482 | D22: 0.001758 | L22: Rt = runoff for current time step (in)
A23: 19 | B23: 114 | C23: 0.03324 | D23: 0.001758 | L23: A = contributing area (ft)
A24: 20 | B24: 120 | C24: 0.035 | D24: 0.00176 | L24: dt = calculation time step (min)
A25: 21 | B25: 126 | C25: 0.036775 | D25: 0.001775
A26: 22 | B26: 132 | C26: 0.038578 | D26: 0.001803 | L26: Qt = routed stormwater flow
A27: 23 | B27: 138 | C27: 0.040411 | D27: 0.001833 | L27: w = routing function
A28: 24 | B28: 144 | C28: 0.042272 | D28: 0.001861 | L28: Tc = time of concentration
A29: 25 | B29: 150 | C29: 0.044163 | D29: 0.001891
A30: 26 | B30: 156 | C30: 0.046082 | D30: 0.001919 | L30: n = Manning's roughness (0.011 for pavement)
A31: 27 | B31: 162 | C31: 0.04803 | D31: 0.001948 | L31: L = flow lenth (ft; computed from tributary area)
A32: 28 | B32: 168 | C32: 0.050008 | D32: 0.001978 | L32: P2 = 2-year, 24-hour rainfall (in)
A33: 29 | B33: 174 | C33: 0.052014 | D33: 0.002006 | L33: s = 0.005 (ft/ft; assumed value)
A34: 30 | B34: 180 | C34: 0.05405 | D34: 0.002036 | L34: Note: set minimum Tc = 5 minutes (Portland BES recommendation)
A35: 31 | B35: 186 | C35: 0.056114 | D35: 0.002064
A36: 32 | B36: 192 | C36: 0.058208 | D36: 0.002094
A37: 33 | B37: 198 | C37: 0.06033 | D37: 0.002122 | G37: from TR-55 user manual…
A38: 34 | B38: 204 | C38: 0.062482 | D38: 0.002152
A39: 35 | B39: 210 | C39: 0.064662 | D39: 0.00218
A40: 36 | B40: 216 | C40: 0.066872 | D40: 0.00221
A41: 37 | B41: 222 | C41: 0.06911 | D41: 0.002238
A42: 38 | B42: 228 | C42: 0.071378 | D42: 0.002268
A43: 39 | B43: 234 | C43: 0.073675 | D43: 0.002297
A44: 40 | B44: 240 | C44: 0.076 | D44: 0.002325
A45: 41 | B45: 246 | C45: 0.078345 | D45: 0.002345
A46: 42 | B46: 252 | C46: 0.080702 | D46: 0.002357
A47: 43 | B47: 258 | C47: 0.08307 | D47: 0.002368
A48: 44 | B48: 264 | C48: 0.085448 | D48: 0.002378
A49: 45 | B49: 270 | C49: 0.087837 | D49: 0.002389
A50: 46 | B50: 276 | C50: 0.090238 | D50: 0.002401
A51: 47 | B51: 282 | C51: 0.092649 | D51: 0.002411
A52: 48 | B52: 288 | C52: 0.095072 | D52: 0.002423
A53: 49 | B53: 294 | C53: 0.097505 | D53: 0.002433
A54: 50 | B54: 300 | C54: 0.09995 | D54: 0.002445
A55: 51 | B55: 306 | C55: 0.102405 | D55: 0.002455
A56: 52 | B56: 312 | C56: 0.104872 | D56: 0.002467
A57: 53 | B57: 318 | C57: 0.10735 | D57: 0.002478
A58: 54 | B58: 324 | C58: 0.109838 | D58: 0.002488
A59: 55 | B59: 330 | C59: 0.112337 | D59: 0.002499
A60: 56 | B60: 336 | C60: 0.114848 | D60: 0.002511
A61: 57 | B61: 342 | C61: 0.11737 | D61: 0.002522
A62: 58 | B62: 348 | C62: 0.119902 | D62: 0.002532
A63: 59 | B63: 354 | C63: 0.122445 | D63: 0.002543
A64: 60 | B64: 360 | C64: 0.125 | D64: 0.002555
A65: 61 | B65: 366 | C65: 0.127614 | D65: 0.002614
A66: 62 | B66: 372 | C66: 0.130336 | D66: 0.002722
A67: 63 | B67: 378 | C67: 0.133166 | D67: 0.00283
A68: 64 | B68: 384 | C68: 0.136104 | D68: 0.002938
A69: 65 | B69: 390 | C69: 0.13915 | D69: 0.003046
A70: 66 | B70: 396 | C70: 0.142304 | D70: =C70-C69 -> 0.003154
A71: 67 | B71: 402 | C71: 0.145566 | D71: 0.003262
A72: 68 | B72: 408 | C72: 0.148936 | D72: 0.00337
A73: 69 | B73: 414 | C73: 0.152414 | D73: 0.003478
A74: 70 | B74: 420 | C74: 0.156 | D74: 0.003586
A75: 71 | B75: 426 | C75: 0.159656 | D75: 0.003656
A76: 72 | B76: 432 | C76: 0.163344 | D76: 0.003688
A77: 73 | B77: 438 | C77: 0.167064 | D77: 0.00372
A78: 74 | B78: 444 | C78: 0.170816 | D78: 0.003752
A79: 75 | B79: 450 | C79: 0.1746 | D79: 0.003784
A80: 76 | B80: 456 | C80: 0.178416 | D80: 0.003816
A81: 77 | B81: 462 | C81: 0.182264 | D81: 0.003848
A82: 78 | B82: 468 | C82: 0.186144 | D82: 0.00388
A83: 79 | B83: 474 | C83: 0.190056 | D83: 0.003912
A84: 80 | B84: 480 | C84: 0.194 | D84: 0.003944
A85: 81 | B85: 486 | C85: 0.198168 | D85: 0.004168
A86: 82 | B86: 492 | C86: 0.202752 | D86: 0.004584
A87: 83 | B87: 498 | C87: 0.207752 | D87: 0.005
A88: 84 | B88: 504 | C88: 0.213168 | D88: 0.005416
A89: 85 | B89: 510 | C89: 0.219 | D89: 0.005832
A90: 86 | B90: 516 | C90: 0.225232 | D90: 0.006232
A91: 87 | B91: 522 | C91: 0.231848 | D91: 0.006616
A92: 88 | B92: 528 | C92: 0.238848 | D92: 0.007
A93: 89 | B93: 534 | C93: 0.246232 | D93: 0.007384
A94: 90 | B94: 540 | C94: 0.254 | D94: 0.007768
A95: 91 | B95: 546 | C95: 0.262328 | D95: 0.008328
A96: 92 | B96: 552 | C96: 0.271392 | D96: 0.009064
A97: 93 | B97: 558 | C97: 0.281192 | D97: 0.0098
A98: 94 | B98: 564 | C98: 0.291728 | D98: 0.010536
A99: 95 | B99: 570 | C99: 0.303 | D99: 0.011272
A100: 96 | B100: 576 | C100: 0.319424 | D100: 0.016424
A101: 97 | B101: 582 | C101: 0.345416 | D101: 0.025992
A102: 98 | B102: 588 | C102: 0.387843 | D102: 0.042427
A103: 99 | B103: 594 | C103: 0.463162 | D103: 0.075319
A104: 100 | B104: 600 | C104: 0.515 | D104: 0.051838
A105: 101 | B105: 606 | C105: 0.5322 | D105: 0.0172
A106: 102 | B106: 612 | C106: 0.5476 | D106: 0.0154
A107: 103 | B107: 618 | C107: 0.5612 | D107: 0.0136
A108: 104 | B108: 624 | C108: 0.573 | D108: 0.0118
A109: 105 | B109: 630 | C109: 0.583 | D109: 0.01
A110: 106 | B110: 636 | C110: 0.59188 | D110: 0.00888
A111: 107 | B111: 642 | C111: 0.60032 | D111: 0.00844
A112: 108 | B112: 648 | C112: 0.60832 | D112: 0.008
A113: 109 | B113: 654 | C113: 0.61588 | D113: 0.00756
A114: 110 | B114: 660 | C114: 0.623 | D114: 0.00712
A115: 111 | B115: 666 | C115: 0.62982 | D115: 0.00682
A116: 112 | B116: 672 | C116: 0.63648 | D116: 0.00666
A117: 113 | B117: 678 | C117: 0.64298 | D117: 0.0065
A118: 114 | B118: 684 | C118: 0.64932 | D118: 0.00634
A119: 115 | B119: 690 | C119: 0.6555 | D119: 0.00618
A120: 116 | B120: 696 | C120: 0.66152 | D120: 0.00602
A121: 117 | B121: 702 | C121: 0.66738 | D121: 0.00586
A122: 118 | B122: 708 | C122: 0.67308 | D122: 0.0057
A123: 119 | B123: 714 | C123: 0.67862 | D123: 0.00554
A124: 120 | B124: 720 | C124: 0.684 | D124: 0.00538
A125: 121 | B125: 726 | C125: 0.68925 | D125: 0.00525
A126: 122 | B126: 732 | C126: 0.6944 | D126: 0.00515
A127: 123 | B127: 738 | C127: 0.69945 | D127: 0.00505
A128: 124 | B128: 744 | C128: 0.7044 | D128: 0.00495
A129: 125 | B129: 750 | C129: 0.70925 | D129: 0.00485
A130: 126 | B130: 756 | C130: 0.714 | D130: 0.00475
A131: 127 | B131: 762 | C131: 0.71865 | D131: 0.00465
A132: 128 | B132: 768 | C132: 0.7232 | D132: 0.00455
A133: 129 | B133: 774 | C133: 0.72765 | D133: 0.00445
A134: 130 | B134: 780 | C134: 0.732 | D134: =C134-C133 -> 0.00435
A135: 131 | B135: 786 | C135: 0.73625 | D135: 0.00425
A136: 132 | B136: 792 | C136: 0.7404 | D136: 0.00415
A137: 133 | B137: 798 | C137: 0.74445 | D137: 0.00405
A138: 134 | B138: 804 | C138: 0.7484 | D138: 0.00395
A139: 135 | B139: 810 | C139: 0.75225 | D139: 0.00385
A140: 136 | B140: 816 | C140: 0.756 | D140: 0.00375
A141: 137 | B141: 822 | C141: 0.75965 | D141: 0.00365
A142: 138 | B142: 828 | C142: 0.7632 | D142: 0.00355
A143: 139 | B143: 834 | C143: 0.76665 | D143: 0.00345
A144: 140 | B144: 840 | C144: 0.77 | D144: 0.00335
A145: 141 | B145: 846 | C145: 0.77329 | D145: 0.00329
A146: 142 | B146: 852 | C146: 0.77656 | D146: 0.00327
A147: 143 | B147: 858 | C147: 0.77981 | D147: 0.00325
A148: 144 | B148: 864 | C148: 0.78304 | D148: 0.00323
A149: 145 | B149: 870 | C149: 0.78625 | D149: 0.00321
A150: 146 | B150: 876 | C150: 0.78944 | D150: 0.00319
A151: 147 | B151: 882 | C151: 0.79261 | D151: 0.00317
A152: 148 | B152: 888 | C152: 0.79576 | D152: 0.00315
A153: 149 | B153: 894 | C153: 0.79889 | D153: 0.00313
A154: 150 | B154: 900 | C154: 0.802 | D154: 0.00311
A155: 151 | B155: 906 | C155: 0.80509 | D155: 0.00309
A156: 152 | B156: 912 | C156: 0.80816 | D156: 0.00307
A157: 153 | B157: 918 | C157: 0.81121 | D157: 0.00305
A158: 154 | B158: 924 | C158: 0.81424 | D158: 0.00303
A159: 155 | B159: 930 | C159: 0.81725 | D159: 0.00301
A160: 156 | B160: 936 | C160: 0.82024 | D160: 0.00299
A161: 157 | B161: 942 | C161: 0.82321 | D161: 0.00297
A162: 158 | B162: 948 | C162: 0.82616 | D162: 0.00295
A163: 159 | B163: 954 | C163: 0.82909 | D163: 0.00293
A164: 160 | B164: 960 | C164: 0.832 | D164: 0.00291
A165: 161 | B165: 966 | C165: 0.83489 | D165: 0.00289
A166: 162 | B166: 972 | C166: 0.83776 | D166: 0.00287
A167: 163 | B167: 978 | C167: 0.84061 | D167: 0.00285
A168: 164 | B168: 984 | C168: 0.84344 | D168: 0.00283
A169: 165 | B169: 990 | C169: 0.84625 | D169: 0.00281
A170: 166 | B170: 996 | C170: 0.84904 | D170: 0.00279
A171: 167 | B171: 1002 | C171: 0.85181 | D171: 0.00277
A172: 168 | B172: 1008 | C172: 0.85456 | D172: 0.00275
A173: 169 | B173: 1014 | C173: 0.85729 | D173: 0.00273
A174: 170 | B174: 1020 | C174: 0.86 | D174: 0.00271
A175: 171 | B175: 1026 | C175: 0.86269 | D175: 0.00269
A176: 172 | B176: 1032 | C176: 0.86536 | D176: 0.00267
A177: 173 | B177: 1038 | C177: 0.86801 | D177: 0.00265
A178: 174 | B178: 1044 | C178: 0.87064 | D178: 0.00263
A179: 175 | B179: 1050 | C179: 0.87325 | D179: 0.00261
A180: 176 | B180: 1056 | C180: 0.87584 | D180: 0.00259
A181: 177 | B181: 1062 | C181: 0.87841 | D181: 0.00257
A182: 178 | B182: 1068 | C182: 0.88096 | D182: 0.00255
A183: 179 | B183: 1074 | C183: 0.88349 | D183: 0.00253
A184: 180 | B184: 1080 | C184: 0.886 | D184: 0.00251
A185: 181 | B185: 1086 | C185: 0.88849 | D185: 0.00249
A186: 182 | B186: 1092 | C186: 0.89096 | D186: 0.00247
A187: 183 | B187: 1098 | C187: 0.89341 | D187: 0.00245
A188: 184 | B188: 1104 | C188: 0.89584 | D188: 0.00243
A189: 185 | B189: 1110 | C189: 0.89825 | D189: 0.00241
A190: 186 | B190: 1116 | C190: 0.90064 | D190: 0.00239
A191: 187 | B191: 1122 | C191: 0.90301 | D191: 0.00237
A192: 188 | B192: 1128 | C192: 0.90536 | D192: 0.00235
A193: 189 | B193: 1134 | C193: 0.90769 | D193: 0.00233
A194: 190 | B194: 1140 | C194: 0.91 | D194: 0.00231
A195: 191 | B195: 1146 | C195: 0.91229 | D195: 0.00229
A196: 192 | B196: 1152 | C196: 0.91456 | D196: 0.00227
A197: 193 | B197: 1158 | C197: 0.91681 | D197: 0.00225
A198: 194 | B198: 1164 | C198: 0.91904 | D198: =C198-C197 -> 0.00223
A199: 195 | B199: 1170 | C199: 0.92125 | D199: 0.00221
A200: 196 | B200: 1176 | C200: 0.92344 | D200: 0.00219
A201: 197 | B201: 1182 | C201: 0.92561 | D201: 0.00217
... 43 more rows

Sheet Lookups, Constants
A1: Lookup Tables for Combo Boxes | D1: Hydraulic Constants
A3: DMA Type | B3: Code | E3: Gravel layer porosity: | F3: 0.4
A4: Self-Treating | B4: STA
A5: Self-Retaining | B5: SRA
A6: Drains to SCM | B6: 2SCM
A7: Drains to Self-Retaining | B7: 2SRA
A9: SCM Type
A10: Bioretention
A11: Direct Infiltration
A13: DMA Surface Types | B13: Curve Number | C13: Runoff Factor (WQ)
A14: Roof | B14: 98 | C14: 1
A15: Concrete or asphalt | B15: 98 | C15: 1
A16: Grouted unit pavers | B16: 98 | C16: 1
A17: Pervious concrete | C17: 0
A18: Porous asphalt | C18: 0
A19: Unit pavers set in sand | B19: 89 | C19: 0.5
A20: Open/porous pavers | C20: 0
A21: Crushed aggregate | C21: 0
A22: Turfblock | C22: 0
A23: Landscape | B23: 68 | C23: 0.1
A25: SCM Optimization
A26: Area
A27: Depth
A29: USA Lookup
A30: Yes
A31: No
A33: Compliance Approach
A34: Tier 2 - Treatment
A35: Tier 2 - Storage
A36: Tier 3 - Retention
A38: Infiltration Rate
A39: HSG A/B
A40: HSG C/D
A41: Site-Specific
A43: Impervious Type | B43: Code
A44: New | B44: NEW
A45: Replaced | B45: RPL
A46: Replaced within a USA | B46: RUSA
A48: Flow Control Orifice
A49: Yes
A50: No
A52: Reservoir Selection
A53: Depth (in)
A54: Volume (ft3)
